bitfinex-derivatives/quotes_SOLF0:USTF0_20250309
["timestamp","ask_amount","ask_price","bid_price","bid_amount"]
[1741537221329,35.8514,130.77,130.68,57.55009079]
[1741537221534,35.8514,130.77,130.7,7.6523]
[1741537221835,93.40149079,130.77,130.67,2.0994]
[1741537222028,91.41009079,130.77,130.67,2.0994]
[1741537222224,0.05766222,130.73,130.71,0.05034897]
[1741537222427,33.91766222,130.73,130.71,0.05034897]
[1741537222623,33.91766222,130.73,130.64,2.0558]
[1741537222831,57.55009079,130.71,130.59,343.97009079]
[1741537223134,57.55009079,130.68,130.59,343.97009079]
[1741537223335,33.86,130.67,130.56,95.59159079]
[1741537223536,35.9607,130.67,130.56,95.59159079]
[1741537223735,0.0571578,130.63,130.6,0.05276429]
[1741537224737,33.9171578,130.63,130.6,0.05276429]
[1741537224930,57.55009079,130.62,130.54,41.67967461]
[1741537225126,59.53419079,130.62,130.54,41.67967461]
[1741537225330,7.6599,130.58,130.54,41.67967461]
[1741537225532,33.86,130.59,130.54,41.67967461]
[1741537226036,0.05145089,130.58,130.55,0.05721191]
[1741537226538,57.60154168,130.58,130.46,91.41009079]
[1741537226930,57.55009079,130.58,130.46,33.86]
[1741537227427,7.6603,130.57,130.47,310.11009079]
[1741537227631,0.05383805,130.54,130.51,0.05157823]
[1741537228427,0.05383805,130.54,130.51,7.71507823]
[1741537228636,0.05383805,130.54,130.51,0.05157823]
[1741537229535,33.86,130.53,130.51,0.05157823]
[1741537230138,7.663,130.52,130.51,0.05157823]
[1741537230438,7.663,130.52,130.43,35.7912]
[1741537230640,7.6632,130.52,130.46,7.6664]
[1741537230835,7.6632,130.52,130.43,35.7912]
[1741537231034,33.86,130.57,130.46,57.55009079]
[1741537231234,33.86,130.57,130.52,7.663]
[1741537231438,0.0509524,130.53,130.5,0.05860314]
[1741537231642,33.86,130.57,130.49,57.55009079]
[1741537231941,0.05492761,130.53,130.5,0.05121858]
[1741537232538,0.05492761,130.53,130.52,7.663]
[1741537233053,2.761e-05,130.53,130.52,7.663]
[1741537234237,2.761e-05,130.53,130.52,65.21309079]
[1741537234831,4.195,130.64,130.52,61.39009079]
[1741537235041,4.195,130.64,130.55,57.55009079]
[1741537235335,7.655,130.66,130.56,33.88]
[1741537235535,91.43009079,130.67,130.6,7.6579]
[1741537235737,91.43009079,130.67,130.56,33.88]
[1741537236133,0.05697427,130.63,130.61,7.6577]
[1741537236439,33.91697427,130.63,130.53,33.86]
[1741537236645,33.91697427,130.63,130.61,7.71567657]
[1741537236944,33.90852492,130.63,130.61,7.6577]
[1741537237138,33.90852492,130.63,130.61,7.71370843]
[1741537237642,33.90852492,130.63,130.61,0.05600843]
[1741537238839,33.90852492,130.63,130.54,91.41009079]
[1741537239041,7.6573,130.62,130.54,91.41009079]
[1741537239345,33.86,130.63,130.54,91.41009079]
[1741537240049,0.04975977,130.6,130.57,0.05800234]
[1741537240546,0.04975977,130.6,130.59,7.6589]
[1741537240746,0.04975977,130.6,130.57,0.05800234]
[1741537241140,0.04975977,130.6,130.59,7.6589]
[1741537241545,0.04975977,130.6,130.57,0.05800234]
[1741537242246,0.04975977,130.6,130.58,7.6589]
[1741537242447,0.04975977,130.6,130.57,0.05800234]
[1741537243049,7.6595,130.58,130.57,0.05800234]
[1741537243240,33.86,130.58,130.52,7.6628]
[1741537243446,33.86,130.58,130.51,35.9236]
[1741537243447,33.86,130.58,130.49,252.78]
[1741537243644,91.41009079,130.58,130.49,252.78]
[1741537243845,91.41009079,130.58,130.51,7.6632]
[1741537244150,7.661,130.56,130.49,252.78]
[1741537244545,0.05150551,130.56,130.53,0.05039193]
[1741537246056,7.71250551,130.56,130.53,0.05039193]
[1741537246757,0.05150551,130.56,130.53,0.05039193]
[1741537247352,0.05150551,130.56,130.55,7.6612]
[1741537248252,0.05150551,130.56,130.53,0.05039193]
[1741537248651,0.05150551,130.56,130.53,7.71279193]
[1741537248846,0.05150551,130.56,130.53,0.05039193]
[1741537250659,310.29009079,130.64,130.53,0.05039193]
[1741537250660,4.043,130.63,130.54,33.86]
[1741537250848,4.043,130.63,130.56,57.55009079]
[1741537251048,4.043,130.63,130.59,7.6586]
[1741537251457,2.0324,130.63,130.59,7.6586]
[1741537251650,2.0324,130.63,130.56,57.55009079]
[1741537251958,259.15639079,130.66,130.6,0.05405337]
[1741537251959,0.05465309,130.62,130.6,0.05405337]
[1741537252158,2.0484,130.69,130.6,0.05405337]
[1741537252354,2.0484,130.69,130.59,57.55009079]
[1741537252355,33.84,130.68,130.59,57.55009079]
[1741537252764,33.84,130.68,130.65,7.655]
[1741537252964,2.0484,130.69,130.59,57.55009079]
[1741537253161,35.8884,130.69,130.66,7.6545]
[1741537253363,35.8884,130.69,130.63,0.05297955]
[1741537253667,35.94519845,130.69,130.65,0.05718055]
[1741537253965,35.8884,130.69,130.65,0.05718055]
[1741537254264,0.05205586,130.68,130.65,0.05718055]
[1741537254965,0.05205586,130.68,130.65,7.71238055]
[1741537255158,0.05205586,130.68,130.65,0.05718055]
[1741537255563,0.05205586,130.68,130.65,7.71218055]
[1741537255765,0.05205586,130.68,130.65,0.05718055]
[1741537257563,0.05205586,130.68,130.66,7.6548]
[1741537258261,0.05205586,130.68,130.67,7.6542]
[1741537258661,0.05205586,130.68,130.65,0.05718055]
[1741537258662,196.1367,130.74,130.65,57.60727134]
[1741537258862,192.0,130.74,130.67,33.82]
[1741537259072,192.0,130.74,130.68,1.9527]
[1741537259362,192.0,130.8,130.68,59.50279079]
[1741537259562,33.82,130.78,130.68,59.50279079]
[1741537259957,0.05344384,130.74,130.72,7.70159411]
[1741537260160,0.05344384,130.74,130.72,0.05069411]
[1741537262069,33.85344384,130.74,130.72,0.05069411]
[1741537262366,91.40353463,130.74,130.65,286.48]
[1741537262565,57.55009079,130.71,130.63,1.9706]
[1741537262768,33.8,130.7,130.6,10.41991865]
[1741537263666,5.23e-06,130.66,130.64,0.05195436]
[1741537263870,5.23e-06,130.66,130.64,33.85195436]
[1741537264073,229.6746,130.73,130.65,2.0442]
[1741537264466,33.8,130.73,130.66,4.0473]
[1741537264871,0.0553788,130.71,130.68,0.04867613]
[1741537265168,7.7075788,130.71,130.68,0.04867613]
[1741537265471,0.0553788,130.71,130.68,0.04867613]
[1741537265671,0.0553788,130.71,130.68,33.84867613]
[1741537266075,0.0553788,130.71,130.7,7.6524]
[1741537266569,0.0553788,130.71,130.69,7.6524]
[1741537266768,0.0553788,130.71,130.68,33.84867613]
[1741537267175,0.0553788,130.71,130.69,7.6526]
[1741537267574,0.0553788,130.71,130.68,33.84867613]
[1741537268173,0.0553788,130.71,130.69,7.6526]
[1741537268372,0.0553788,130.71,130.68,33.84867613]
[1741537269280,0.0553788,130.71,130.68,0.04867613]
[1741537269573,0.0553788,130.71,130.7,7.6524]
[1741537270978,0.0553788,130.71,130.68,7.70167613]
[1741537271271,0.0553788,130.71,130.68,0.04867613]
[1741537272168,0.0553788,130.71,130.7,7.6524]
[1741537272580,0.0553788,130.71,130.69,7.6528]
[1741537272777,0.0553788,130.71,130.68,0.04867613]
[1741537273679,0.0553788,130.71,130.7,7.6524]
[1741537276582,0.0553788,130.71,130.69,7.6527]
[1741537276886,0.0553788,130.71,130.68,0.04867613]
[1741537277187,0.0553788,130.71,130.7,7.6524]
[1741537281582,7.88e-05,130.71,130.7,7.6524]
[1741537281779,193.33136944,130.82,130.7,37.58]
[1741537281983,193.33136944,130.82,130.76,35.41356963]
[1741537282182,7.6439,130.85,130.76,69.17356963]
[1741537282183,33.76,130.85,130.76,69.17356963]
[1741537282387,231.8799,130.87,130.76,69.17356963]
[1741537282690,7.6438,130.85,130.76,137.15886963]
[1741537282993,231.8799,130.87,130.82,7.6454]
[1741537283288,0.05377994,130.86,130.76,137.15886963]
[1741537283484,231.8799,130.87,130.83,0.05355752]
[1741537283685,0.05854508,130.82,130.79,35.41356963]
[1741537283885,6.1199,130.87,130.8,33.76]
[1741537284084,2.0876,130.87,130.8,33.76]
[1741537284788,2.0876,130.87,130.83,7.6444]
[1741537284989,0.05072872,130.85,130.82,0.04852044]
[1741537285488,0.05072872,130.85,130.84,7.6441]
[1741537286690,0.05072872,130.85,130.82,0.04852044]
[1741537286890,0.05072872,130.85,130.82,62.04852044]
[1741537287084,0.05072872,130.85,130.84,7.6442]
[1741537287283,0.05072872,130.85,130.82,62.04852044]
[1741537287484,0.05072872,130.85,130.82,0.04852044]
[1741537287685,2.872e-05,130.85,130.84,7.6442]
[1741537287892,231.8662,130.96,130.85,57.42771268]
[1741537288085,7.6388,130.94,130.9,7.6402]
[1741537288285,231.8662,130.96,130.85,57.42771268]
[1741537288686,231.8662,130.96,130.9,7.6404]
[1741537288882,0.05736793,130.92,130.89,0.04895255]
[1741537289087,0.05736793,130.92,130.91,7.6398]
[1741537289287,6.1262,130.96,130.89,0.05047048]
[1741537289489,0.0538495,130.93,130.89,0.05047048]
[1741537289688,7.6401,130.92,130.89,0.05047048]
[1741537289988,0.0538495,130.93,130.89,0.05047048]
[1741537290688,33.7738495,130.93,130.89,0.05047048]
[1741537291889,7.6402,130.91,130.89,0.05047048]
[1741537292097,33.7738495,130.93,130.89,0.05047048]
[1741537292600,0.0538495,130.93,130.89,0.05047048]
[1741537292896,0.0538495,130.93,130.89,33.77047048]
[1741537294090,7.6932495,130.93,130.89,41.41157048]
[1741537294294,0.0538495,130.93,130.89,33.77047048]
[1741537294495,7.64,130.92,130.89,41.41167048]
[1741537294694,0.0538495,130.93,130.89,41.41167048]
[1741537294893,0.0538495,130.93,130.89,0.05047048]
[1741537295096,7.6397,130.92,130.89,0.05047048]
[1741537295396,0.0538495,130.93,130.89,0.05047048]
[1741537295591,7.6406,130.91,130.89,0.05047048]
[1741537295797,0.0538495,130.93,130.89,0.05047048]
[1741537296094,7.6406,130.91,130.89,0.05047048]
[1741537296289,0.0538495,130.93,130.89,0.05047048]
[1741537296998,33.7,130.92,130.89,0.05047048]
[1741537297998,33.7,130.92,130.83,290.1501]
[1741537298498,33.7,130.92,130.83,286.12]
[1741537298901,7.6437,130.85,130.83,252.42]
[1741537299089,33.7,130.88,130.8,33.7]
[1741537299501,0.04977544,130.85,130.83,0.0570381]
[1741537299997,7.6442,130.84,130.83,0.0570381]
[1741537300200,0.04977544,130.85,130.83,0.0570381]
[1741537300601,7.6442,130.84,130.83,0.0570381]
[1741537300999,0.04977544,130.85,130.83,0.0570381]
[1741537301303,7.69377544,130.85,130.83,0.0570381]
[1741537301502,0.04977544,130.85,130.83,0.0570381]
[1741537302097,7.6442,130.84,130.83,0.0570381]
[1741537303098,7.6448,130.83,130.79,7.6467]
[1741537303294,7.6448,130.83,130.77,289.8468]
[1741537303596,33.68,130.84,130.77,285.88]
[1741537303797,2.0751,130.82,130.77,252.2]
[1741537304197,0.05074002,130.81,130.78,0.05636614]
[1741537304402,4.0729,130.82,130.73,57.42771268]
[1741537304606,0.04882948,130.81,130.78,0.05679373]
[1741537304903,33.68,130.8,130.71,33.68]
[1741537305805,7.649,130.76,130.72,7.6507]
[1741537306001,7.649,130.76,130.74,0.05280429]
[1741537307005,0.05781661,130.77,130.74,0.05280429]
[1741537307607,33.68,130.76,130.74,0.05280429]
[1741537307901,7.6495,130.75,130.74,0.05280429]
[1741537308105,35.644,130.76,130.69,287.63560437]
[1741537308299,35.644,130.76,130.69,252.24]
[1741537308604,7.6503,130.74,130.69,259.8925]
[1741537308807,7.6503,130.74,130.69,252.24]
[1741537309003,4.0592,130.75,130.66,35.39560437]
[1741537309306,7.6517,130.72,130.7,0.05773863]
[1741537309607,0.05191932,130.73,130.7,7.70983863]
[1741537309812,0.05191932,130.73,130.7,0.05773863]
[1741537310204,7.70301932,130.73,130.7,0.05773863]
[1741537310405,0.05191932,130.73,130.7,0.05773863]
[1741537310707,0.05191932,130.73,130.71,7.6518]
[1741537311003,0.05191932,130.73,130.7,0.05773863]
[1741537311208,1.932e-05,130.73,130.7,0.05773863]
[1741537311410,1.932e-05,130.73,130.72,7.6513]
[1741537312106,1.932e-05,130.73,130.7,0.05773863]
[1741537313110,1.932e-05,130.73,130.7,7.71003863]
[1741537313507,1.932e-05,130.73,130.7,0.05773863]
[1741537313808,7.6516,130.72,130.7,0.05773863]
[1741537314005,4.1681,130.72,130.7,0.05773863]
[1741537314209,7.6519,130.71,130.7,0.05773863]
[1741537314605,33.68,130.71,130.62,95.68]
[1741537314811,33.68,130.71,130.62,131.07560437]
[1741537315207,33.68,130.71,130.69,7.653]
[1741537315607,33.68,130.71,130.62,131.07560437]
[1741537315808,7.6524,130.7,130.69,0.04993574]
[1741537316011,33.73436616,130.71,130.68,0.0567635]
[1741537316012,33.7358628,130.71,130.68,0.0567635]
[1741537316218,7.6543,130.67,130.64,7.6556]
[1741537316412,7.6543,130.67,130.62,69.07560437]
[1741537316413,7.6543,130.67,130.62,35.39560437]
[1741537316613,7.6543,130.67,130.6,6.0805]
[1741537316809,33.68,130.67,130.64,0.05472445]
[1741537317014,0.05865217,130.65,130.64,0.05472445]
[1741537320017,0.05865217,130.65,130.64,7.71072445]
[1741537320720,5.217e-05,130.65,130.64,7.71072445]
[1741537321115,5.217e-05,130.65,130.64,0.05472445]
[1741537321313,5.217e-05,130.65,130.57,314.42]
[1741537321510,1.98305217,130.65,130.57,314.42]
[1741537321714,1.983,130.65,130.57,314.42]
[1741537322116,1.983,130.65,130.6,7.6577]
[1741537322318,1.983,130.65,130.55,1.9867]
[1741537322518,7.6566,130.63,130.53,71.09780437]
[1741537322718,35.7448,130.62,130.53,71.09780437]
[1741537323222,7.6578,130.61,130.55,7.6609]
[1741537323409,35.7448,130.62,130.51,252.52]
[1741537323723,0.0567689,130.59,130.57,0.05765765]
[1741537323919,33.7,130.58,130.57,0.05765765]
[1741537324123,0.0567689,130.59,130.57,0.05765765]
[1741537324516,33.7,130.63,130.62,7.6571]
[1741537324820,192.0,130.68,130.55,5.934]
[1741537324821,33.7,130.67,130.59,35.39560437]
[1741537325217,1.9388,130.7,130.62,35.39560437]
[1741537325420,33.7,130.73,130.63,33.7]
[1741537325616,69.09560437,130.73,130.63,33.7]
[1741537325825,0.05200167,130.67,130.65,0.05762941]
[1741537326121,227.39560437,130.72,130.64,7.6558]
[1741537326319,192.0,130.71,130.65,0.04953056]
[1741537326516,0.05853145,130.67,130.65,0.04953056]
[1741537326716,33.7,130.66,130.59,252.6]
[1741537326921,35.6388,130.66,130.59,252.6]
[1741537327125,35.6388,130.66,130.56,35.6385]
[1741537327728,7.6559,130.65,130.58,7.6593]
[1741537328024,7.6559,130.65,130.56,35.6385]
[1741537328025,0.04991916,130.62,130.6,0.05463652]
[1741537328221,33.7,130.66,130.6,0.05463652]
[1741537328422,192.0,130.68,130.62,35.39560437]
[1741537328620,192.0,130.68,130.63,1.9579]
[1741537328828,33.7,130.72,130.69,7.6529]
[1741537329219,33.7,130.72,130.65,35.39560437]
[1741537329424,33.7,130.72,130.64,33.7]
[1741537329824,33.7,130.72,130.65,35.39560437]
[1741537330026,192.0,130.74,130.65,35.39560437]
[1741537330228,464.57252097,130.91,130.64,33.7]
[1741537330229,33.7,130.75,130.68,35.39560437]
[1741537330531,33.7,130.75,130.68,69.09560437]
[1741537330729,33.7,130.8,130.71,35.39560437]
[1741537331621,0.05424852,130.77,130.74,0.04873898]
[1741537332427,4.1234,130.82,130.74,35.44434335]
[1741537332620,192.0,130.86,130.74,35.44434335]
[1741537332826,33.7,130.85,130.77,35.39560437]
[1741537333026,33.7,130.85,130.77,69.09560437]
[1741537333327,33.7,130.88,130.77,321.63560437]
[1741537333526,3.9287,130.89,130.84,7.6441]
[1741537333727,192.0,130.9,130.83,35.39560437]
[1741537334130,192.0,130.9,130.86,7.643]
[1741537334525,192.0,130.9,130.83,35.39560437]
[1741537334825,192.0,130.9,130.81,33.7]
[1741537335032,0.05682874,130.88,130.85,0.04812614]
[1741537336432,0.05682874,130.88,130.85,7.69172614]
[1741537336732,227.39560437,130.95,130.85,7.69172614]
[1741537336733,2.1131,130.94,130.86,35.39560437]
[1741537337035,225.68,130.95,130.86,35.39560437]
[1741537337227,225.68,130.95,130.89,35.39560437]
[1741537337428,227.39560437,131.01,130.89,69.05560437]
[1741537337630,231.19728374,131.0,130.89,69.05560437]
[1741537337934,0.05506989,130.96,130.94,0.05533642]
[1741537338136,33.66,130.95,130.94,0.05533642]
[1741537338339,39.19542524,130.95,130.94,0.05533642]
[1741537338541,33.66,130.95,130.94,0.05533642]
[1741537339042,33.66,130.95,130.86,71.16370437]
[1741537339241,33.66,130.95,130.89,35.39560437]
[1741537339540,33.66,130.98,130.89,35.39560437]
[1741537339740,5.53423928,130.97,130.89,97.39560437]
[1741537339943,33.66,130.98,130.89,97.39560437]
[1741537340137,0.05475322,130.95,130.92,0.04991217]
[1741537340337,0.05475322,130.95,130.9,35.6787]
[1741537340532,0.05475322,130.95,130.92,0.05432036]
[1741537342642,7.6385,130.94,130.92,0.05432036]
[1741537342839,0.05475322,130.95,130.92,0.05432036]
[1741537343740,33.64,130.94,130.87,1.9931]
[1741537344440,7.6392,130.93,130.88,7.6415]
[1741537344642,33.64,130.94,130.87,1.9931]
[1741537345045,7.6403,130.91,130.89,0.05505239]
[1741537345344,0.04980056,130.92,130.89,0.05505239]
[1741537346944,7.6406,130.91,130.89,0.05505239]
[1741537347247,0.04980056,130.92,130.89,0.05505239]
[1741537348044,0.04980056,130.92,130.9,7.6402]
[1741537348650,0.04980056,130.92,130.89,0.05505239]
[1741537349548,192.0,130.97,130.9,35.39560437]
[1741537349749,35.6493,131.0,130.92,35.39560437]
[1741537349946,35.6493,131.0,130.96,7.6369]
[1741537350141,1.9401,131.02,130.93,33.62]
[1741537350349,33.62,131.03,130.94,35.39560437]
[1741537350545,35.39560437,131.06,130.96,35.39560437]
[1741537350852,0.05065566,131.0,130.97,0.05366507]
[1741537351054,0.05065566,131.0,130.94,37.41310437]
[1741537351250,0.05502704,130.99,130.97,0.05658336]
[1741537351551,33.62,131.03,131.0,7.6346]
[1741537352048,33.67600189,131.03,131.0,0.05411049]
[1741537353855,41.30950189,131.03,131.0,0.05411049]
[1741537354054,7.68950189,131.03,131.0,0.05411049]
[1741537354748,0.05600189,131.03,131.0,0.05411049]
[1741537354952,0.05600189,131.03,131.0,7.68901049]
[1741537355157,0.05600189,131.03,131.0,0.05411049]
[1741537355864,7.68960189,131.03,131.0,0.05411049]
[1741537356661,0.05600189,131.03,131.0,0.05411049]
[1741537356959,0.05600189,131.03,131.01,7.6343]
[1741537357158,0.05600189,131.03,131.0,0.05411049]
[1741537357752,7.68960189,131.03,131.0,0.05411049]
[1741537357955,0.05600189,131.03,131.0,0.05411049]
[1741537358562,0.05600189,131.03,131.02,7.6337]
[1741537359056,0.05600189,131.03,131.0,0.05411049]
[1741537359454,0.05600189,131.03,131.0,35.44971486]
[1741537359654,252.02,131.15,131.02,35.39560437]
[1741537359655,7.6293,131.1,131.02,35.39560437]
[1741537359955,225.58,131.11,131.02,35.39560437]
[1741537360156,192.0,131.11,131.02,35.39560437]
[1741537360362,199.6287,131.11,131.02,35.39560437]
[1741537360555,192.0,131.11,131.02,35.39560437]
[1741537360761,7.6295,131.1,131.06,7.6312]
[1741537360961,0.05015036,131.08,131.06,7.6312]
[1741537361566,0.05015036,131.08,131.05,0.05822501]
[1741537362272,0.05015036,131.08,131.05,7.69022501]
[1741537362473,0.05015036,131.08,131.05,0.05822501]
[1741537362868,33.58,131.07,131.05,0.05822501]
[1741537363068,35.6551,131.07,131.05,0.05822501]
[1741537363267,7.6314,131.06,131.05,0.05822501]
[1741537363467,35.6551,131.07,130.98,33.58]
[1741537363669,35.6551,131.07,130.98,68.97560437]
[1741537363876,7.6333,131.03,130.98,33.58]
[1741537364167,33.58,131.03,130.94,68.97560437]
[1741537364372,33.58,131.03,130.99,7.6353]
[1741537364574,0.05167276,131.0,130.99,7.6353]
[1741537365074,0.05167276,131.0,130.98,0.05652559]
[1741537365567,0.05167276,131.0,130.98,7.69222559]
[1741537366272,7.276e-05,131.0,130.99,7.6355]
[1741537371781,7.276e-05,131.0,130.98,0.05652559]
[1741537371979,7.276e-05,131.0,130.98,7.69222559]
[1741537372281,7.276e-05,131.0,130.98,0.05652559]
[1741537372481,7.276e-05,131.0,130.98,7.69232559]
[1741537372980,7.276e-05,131.0,130.99,7.6355]
[1741537374779,7.276e-05,131.0,130.98,33.61652559]
[1741537375076,7.276e-05,131.0,130.99,7.6355]
[1741537375279,5.54815266,131.0,130.99,7.6355]
[1741537375577,5.54815266,131.0,130.98,33.61652559]
[1741537375578,5.54815266,131.0,130.98,0.05652559]
[1741537375782,5.5480799,130.99,130.98,0.05652559]
[1741537376174,5.5480799,130.99,130.98,7.69262559]
[1741537377380,5.5480799,130.99,130.98,0.05652559]
[1741537377579,5.56367118,130.99,130.98,0.05652559]
[1741537380083,5.56367118,130.99,130.98,7.69262559]
[1741537380979,5.56367118,130.99,130.98,0.05652559]
[1741537381178,5.5805519,130.99,130.98,0.05652559]
[1741537381578,5.5805519,130.99,130.98,7.69262559]
[1741537383775,5.19e-05,130.99,130.98,7.69262559]
[1741537384287,7.276e-05,131.0,130.99,7.6355]
[1741537386581,7.6355,130.99,130.98,0.05652559]
[1741537386777,2.03,130.99,130.93,293.85967461]
[1741537386978,7.6376,130.96,130.93,293.85967461]
[1741537387183,7.6376,130.96,130.93,41.67967461]
[1741537387184,41.1976,130.96,130.93,41.67967461]
[1741537387986,7.6379,130.95,130.93,41.73379982]
[1741537388177,33.61236742,130.96,130.93,32.19239982]
[1741537388381,35.39560437,130.94,130.92,104.8596831]
[1741537388579,7.639,130.93,130.92,104.8596831]
[1741537388784,35.39560437,130.94,130.91,125.03902386]
[1741537388979,192.0,130.93,130.91,125.03902386]
[1741537389185,268.59520437,130.92,130.91,85.53252386]
[1741537389491,192.0,130.91,130.9,172.56735836]
[1741537389985,11.4602,130.91,130.9,63.8268235]
[1741537390283,7.6436,130.86,130.84,31.79463454]
[1741537390483,33.54,130.85,130.84,31.79463454]
[1741537391393,41.1837,130.85,130.84,31.79463454]
[1741537391585,33.54,130.85,130.84,31.79463454]
[1741537392484,141.72492247,130.85,130.83,0.0527024]
[1741537392687,141.72492247,130.85,130.83,7.6974024]
[1741537392883,141.72492247,130.85,130.83,0.0527024]
[1741537393082,108.18492247,130.85,130.83,0.0527024]
[1741537393284,108.18492247,130.85,130.84,7.6442]
[1741537393684,82.85722247,130.85,130.84,7.6442]
[1741537393890,76.49082247,130.85,130.84,7.6442]
[1741537394091,38.25692247,130.85,130.84,9.6799]
[1741537394294,0.05491785,130.86,130.85,7.6437]
[1741537394998,41.70488566,130.89,130.84,2.0357]
[1741537395793,41.70488566,130.89,130.88,7.6419]
[1741537396187,41.70488566,130.89,130.87,0.04949964]
[1741537396389,35.39560437,130.89,130.78,35.39560437]
[1741537396595,192.0,130.88,130.78,33.56]
[1741537396794,225.56,130.87,130.78,33.56]
[1741537397394,225.56,130.87,130.77,2.0714]
[1741537397602,0.05548747,130.84,130.81,0.05679603]
[1741537397903,33.56,130.83,130.81,0.05679603]
[1741537398095,41.205,130.83,130.81,0.05679603]
[1741537398300,33.56,130.83,130.81,0.05679603]
[1741537399805,33.56,130.83,130.74,37.35140437]
[1741537400105,33.56,130.83,130.76,35.39560437]
[1741537400804,33.56,130.83,130.82,7.6454]
[1741537401000,0.05166393,130.81,130.78,0.05772754]
[1741537401206,33.56,130.83,130.81,0.05473703]
[1741537401405,33.56,130.83,130.81,7.6456]
[1741537401606,33.6096132,130.83,130.81,0.05562035]
[1741537401907,33.6096132,130.83,130.82,7.6454]
[1741537403212,1.32e-05,130.83,130.82,7.6454]
[1741537403605,75.26488566,130.9,130.88,7.6416]
[1741537404205,7.6414,130.89,130.85,7.6431]
[1741537404411,75.26488566,130.9,130.82,37.41340437]
[1741537404708,82.90578566,130.9,130.85,0.05845593]
[1741537404905,0.04968127,130.87,130.85,0.05845593]
[1741537405113,0.04968127,130.87,130.82,37.41340437]
[1741537405910,0.04968127,130.87,130.85,7.6432]
[1741537406314,0.04968127,130.87,130.85,0.05466688]
[1741537406817,33.56,130.86,130.82,2.0178]
[1741537407112,33.56,130.86,130.85,7.6437]
[1741537409317,33.56,130.86,130.85,7.57368349]
[1741537409616,0.04968127,130.87,130.84,0.05611239]
[1741537409817,0.04968127,130.87,130.86,7.6431]
[1741537410119,10.42622141,130.9,130.85,35.39560437]
[1741537410315,10.42622141,130.9,130.89,7.6413]
[1741537410516,31.27866425,130.91,130.88,35.39560437]
[1741537410713,19.64936425,130.91,130.88,35.39560437]
[1741537411020,6.425e-05,130.91,130.88,35.39560437]
[1741537411215,112.16543235,130.9,130.89,7.6413]
[1741537411415,58.52133235,130.9,130.88,33.30015473]
[1741537411908,58.52133235,130.9,130.89,7.6413]
[1741537412815,0.05730278,130.91,130.9,7.6407]
[1741537413218,0.05730278,130.91,130.89,7.6413]
[1741537413611,0.05730278,130.91,130.88,0.05263219]
[1741537413810,0.05730278,130.91,130.88,7.69423219]
[1741537414016,0.05730278,130.91,130.88,0.05263219]
[1741537414417,7.69780278,130.91,130.88,0.05263219]
[1741537414619,0.05730278,130.91,130.88,0.05263219]
[1741537414823,33.59730278,130.91,130.88,0.05263219]
[1741537415020,7.6413,130.89,130.88,0.05263219]
[1741537415325,7.6413,130.89,130.82,35.39560437]
[1741537415326,35.39560437,130.89,130.8,2.044]
[1741537416221,7.6429,130.87,130.83,7.6444]
[1741537416423,0.05360408,130.86,130.84,0.05667481]
[1741537417329,0.05360408,130.86,130.84,7.70037481]
[1741537417620,0.05360408,130.86,130.84,0.05667481]
[1741537417817,0.05360408,130.86,130.84,7.70067481]
[1741537418724,0.05360408,130.86,130.84,0.05667481]
[1741537419227,41.1837,130.85,130.84,0.05667481]
[1741537423319,7.6437,130.85,130.84,0.05667481]
[1741537423520,0.05360408,130.86,130.84,0.05667481]
[1741537426233,0.05360408,130.86,130.84,7.70077481]
[1741537426432,0.05360408,130.86,130.84,0.05667481]
[1741537427232,0.05360408,130.86,130.85,7.6437]
[1741537427835,7.6412,130.9,130.84,0.05667481]
[1741537428131,7.6412,130.9,130.87,7.6423]
[1741537428832,175.02099749,130.92,130.86,7.6429]
[1741537428833,7.6414,130.89,130.86,7.6429]
[1741537429033,0.04837623,130.9,130.87,0.05614643]
[1741537429330,0.04837623,130.9,130.89,7.6413]
[1741537429531,0.04837623,130.9,130.87,0.05614643]
[1741537430430,7.6419,130.88,130.87,0.05614643]
[1741537434327,7.6452,130.83,130.8,7.6463]
[1741537434530,33.52,130.85,130.79,2.0707]
[1741537434730,33.52,130.84,130.79,2.0707]
[1741537435237,7.6462,130.81,130.78,2.066]
[1741537435647,7.6466,130.8,130.78,0.05360049]
[1741537436837,0.05268561,130.81,130.78,0.05360049]
[1741537437033,33.52,130.8,130.78,0.05360049]